[Event "Early-Titled-Tuesday-Blitz-June-18-2024"]
[Site "Chess.com"]
[Date "2024.06.18"]
[Round "4"]
[White "annasargsyan_m"]
[Black "Yaacovn"]
[Result "0-1"]
[WhiteElo "2603"]
[BlackElo "2854"]
[TimeControl "180+1"]
[EndTime "8:41:41 PDT"]
[Termination "Yaacovn won on time"]

1. d4 {[%clk 0:03:00.9]} 1... Nf6 {[%clk 0:02:59.6]} 2. c4 {[%clk 0:03:01.1]}
2... e5 {[%clk 0:02:52.9]} 3. dxe5 {[%clk 0:03:00.2]} 3... Ne4 {[%clk
0:02:53.1]} 4. Qd4 {[%clk 0:02:49.9]} 4... Bb4+ {[%clk 0:02:52.6]} 5. Nd2 {[%clk
0:02:49.2]} 5... Nxd2 {[%clk 0:02:52.4]} 6. Bxd2 {[%clk 0:02:50.1]} 6... Nc6
{[%clk 0:02:52.8]} 7. Qd5 {[%clk 0:02:35.9]} 7... Bxd2+ {[%clk 0:02:51.2]} 8.
Qxd2 {[%clk 0:02:30]} 8... Nxe5 {[%clk 0:02:51.1]} 9. e3 {[%clk 0:02:25.5]} 9...
O-O {[%clk 0:02:50.5]} 10. O-O-O {[%clk 0:02:24.5]} 10... d6 {[%clk 0:02:48.5]}
11. Qc2 {[%clk 0:02:23.3]} 11... Qf6 {[%clk 0:02:47.5]} 12. f4 {[%clk
0:02:17.7]} 12... Ng4 {[%clk 0:02:47.2]} 13. Re1 {[%clk 0:02:15.1]} 13... Re8
{[%clk 0:02:44.6]} 14. Qd2 {[%clk 0:02:07.1]} 14... Qe7 {[%clk 0:01:58.6]} 15.
e4 {[%clk 0:02:03.3]} 15... Bf5 {[%clk 0:01:54.9]} 16. Bd3 {[%clk 0:01:59.4]}
16... Nf6 {[%clk 0:01:54.6]} 17. e5 {[%clk 0:01:50.3]} 17... Bxd3 {[%clk
0:01:52.8]} 18. Qxd3 {[%clk 0:01:43.5]} 18... dxe5 {[%clk 0:01:51.1]} 19. Rxe5
{[%clk 0:01:41.3]} 19... Qd7 {[%clk 0:01:42.2]} 20. Qxd7 {[%clk 0:01:27.7]}
20... Nxd7 {[%clk 0:01:43.1]} 21. Rxe8+ {[%clk 0:01:20.8]} 21... Rxe8 {[%clk
0:01:43]} 22. Nf3 {[%clk 0:01:21]} 22... Re4 {[%clk 0:01:42.6]} 23. b3 {[%clk
0:01:19.9]} 23... Kf8 {[%clk 0:01:22]} 24. Rd1 {[%clk 0:01:17.5]} 24... Nc5
{[%clk 0:01:19]} 25. g3 {[%clk 0:01:06.3]} 25... Re2 {[%clk 0:01:17.2]} 26. Rd2
{[%clk 0:00:59.5]} 26... Re3 {[%clk 0:01:16.5]} 27. Ne5 {[%clk 0:00:55.8]} 27...
Ke8 {[%clk 0:01:16.1]} 28. Kc2 {[%clk 0:00:44.4]} 28... a5 {[%clk 0:01:15.1]}
29. Ng4 {[%clk 0:00:14.4]} 29... Re7 {[%clk 0:01:11]} 30. Ne5 {[%clk 0:00:14.9]}
30... f6 {[%clk 0:01:09.6]} 31. Nf3 {[%clk 0:00:14.8]} 31... Re3 {[%clk
0:01:06.6]} 32. Nd4 {[%clk 0:00:14.9]} 32... Ne4 {[%clk 0:01:06.3]} 33. Rg2
{[%clk 0:00:13.6]} 33... g6 {[%clk 0:01:04.7]} 34. Nb5 {[%clk 0:00:13.5]} 34...
c6 {[%clk 0:01:03.8]} 35. Nd4 {[%clk 0:00:09.8]} 35... f5 {[%clk 0:01:03.7]} 36.
Kb2 {[%clk 0:00:09.9]} 36... Ke7 {[%clk 0:01:02.8]} 37. Nc2 {[%clk 0:00:10.4]}
37... Rd3 {[%clk 0:01:02]} 38. Re2 {[%clk 0:00:10.3]} 38... Kf6 {[%clk
0:01:01.7]} 39. Ne1 {[%clk 0:00:09]} 39... Rd1 {[%clk 0:00:59.9]} 40. Nf3 {[%clk
0:00:09.3]} 40... h6 {[%clk 0:00:58.7]} 41. Ne5 {[%clk 0:00:09.1]} 41... g5
{[%clk 0:00:57.4]} 42. a3 {[%clk 0:00:03.7]} 42... Rh1 {[%clk 0:00:54.7]} 43. b4
{[%clk 0:00:03.2]} 43... axb4 {[%clk 0:00:54.3]} 44. axb4 {[%clk 0:00:04.1]}
44... Rf1 {[%clk 0:00:54.5]} 45. Nd3 {[%clk 0:00:04.2]} 45... b6 {[%clk
0:00:50.6]} 46. b5 {[%clk 0:00:03.4]} 46... c5 {[%clk 0:00:50.5]} 47. Kc2 {[%clk
0:00:02.9]} 47... Ra1 {[%clk 0:00:45.6]} 48. Kb2 {[%clk 0:00:02.9]} 48... Rh1
{[%clk 0:00:43.8]} 49. Kb3 {[%clk 0:00:02.6]} 49... g4 {[%clk 0:00:41.7]} 50.
Ra2 {[%clk 0:00:02]} 50... h5 {[%clk 0:00:36]} 51. Ne5 {[%clk 0:00:01.3]} 51...
Ke6 {[%clk 0:00:33.4]} 52. Nc6 {[%clk 0:00:01.2]} 52... Rf1 {[%clk 0:00:28.1]}
53. Ra6 {[%clk 0:00:01]} 53... Rf3+ {[%clk 0:00:26.5]} 0-1

[Event "Early-Titled-Tuesday-Blitz-June-18-2024"]
[Site "Chess.com"]
[Date "2024.06.18"]
[Round "4"]
[White "Vladimir_Zakhartsov"]
[Black "NovozhilovSemen"]
[Result "1/2-1/2"]
[WhiteElo "2904"]
[BlackElo "2647"]
[TimeControl "180+1"]
[EndTime "8:41:44 PDT"]
[Termination "Game drawn by repetition"]

1. Nf3 {[%clk 0:03:00.4]} 1... c5 {[%clk 0:02:59.5]} 2. e3 {[%clk 0:02:59.8]}
2... Nf6 {[%clk 0:02:58]} 3. c4 {[%clk 0:02:58.6]} 3... e6 {[%clk 0:02:56.6]} 4.
Nc3 {[%clk 0:02:58]} 4... Nc6 {[%clk 0:02:50.4]} 5. d4 {[%clk 0:02:57.4]} 5...
d5 {[%clk 0:02:50.6]} 6. a3 {[%clk 0:02:56.9]} 6... a6 {[%clk 0:02:50.8]} 7.
dxc5 {[%clk 0:02:56.8]} 7... Bxc5 {[%clk 0:02:50.4]} 8. b4 {[%clk 0:02:56.7]}
8... Bd6 {[%clk 0:02:47.3]} 9. Bb2 {[%clk 0:02:55.3]} 9... O-O {[%clk
0:02:45.3]} 10. cxd5 {[%clk 0:02:51.1]} 10... exd5 {[%clk 0:02:36.5]} 11. Be2
{[%clk 0:02:51]} 11... Ne5 {[%clk 0:02:22.5]} 12. Nxd5 {[%clk 0:02:22.9]} 12...
Nxf3+ {[%clk 0:02:04.7]} 13. Bxf3 {[%clk 0:02:22.7]} 13... Nxd5 {[%clk
0:02:05.1]} 14. Bxd5 {[%clk 0:02:21.9]} 14... Be7 {[%clk 0:02:04.6]} 15. O-O
{[%clk 0:02:17.8]} 15... Bf6 {[%clk 0:02:04.7]} 16. Bxf6 {[%clk 0:02:13.4]}
16... Qxf6 {[%clk 0:02:05.6]} 17. Qf3 {[%clk 0:02:12.8]} 17... Qxf3 {[%clk
0:01:46]} 18. Bxf3 {[%clk 0:02:13.7]} 18... Rb8 {[%clk 0:01:46.6]} 19. Rac1
{[%clk 0:02:08.1]} 19... Be6 {[%clk 0:01:46.6]} 20. Rfd1 {[%clk 0:02:02.5]}
20... b6 {[%clk 0:01:41.7]} 21. h4 {[%clk 0:01:53.8]} 21... g6 {[%clk
0:01:38.9]} 22. Rd6 {[%clk 0:01:53]} 22... a5 {[%clk 0:01:34.4]} 23. bxa5 {[%clk
0:01:09.2]} 23... bxa5 {[%clk 0:01:32.6]} 24. Ra6 {[%clk 0:01:09.6]} 24... Rb5
{[%clk 0:01:28.8]} 25. a4 {[%clk 0:01:02.5]} 25... Re5 {[%clk 0:01:25.3]} 26.
Be2 {[%clk 0:00:53.3]} 26... Rd8 {[%clk 0:01:07.7]} 27. Bb5 {[%clk 0:00:50.7]}
27... Rd2 {[%clk 0:01:06.4]} 28. Rxa5 {[%clk 0:00:48.4]} 28... Rf5 {[%clk
0:01:05.4]} 29. Ra8+ {[%clk 0:00:45.8]} 29... Kg7 {[%clk 0:01:05.1]} 30. f3
{[%clk 0:00:37.9]} 30... Ra2 {[%clk 0:00:59.8]} 31. Bf1 {[%clk 0:00:37.4]} 31...
g5 {[%clk 0:00:40.2]} 32. e4 {[%clk 0:00:36.5]} 32... Re5 {[%clk 0:00:40.4]} 33.
hxg5 {[%clk 0:00:28.1]} 33... Rxg5 {[%clk 0:00:40.5]} 34. Ra7 {[%clk 0:00:25.2]}
34... Bh3 {[%clk 0:00:24.6]} 35. Rcc7 {[%clk 0:00:22.4]} 35... Bxg2 {[%clk
0:00:24.3]} 36. Rxf7+ {[%clk 0:00:21.8]} 36... Kg8 {[%clk 0:00:21.1]} 37. Ra8+
{[%clk 0:00:08.6]} 37... Kxf7 {[%clk 0:00:19.9]} 38. Bc4+ {[%clk 0:00:08.7]}
38... Kf6 {[%clk 0:00:20.3]} 39. Rf8+ {[%clk 0:00:04]} 39... Kg7 {[%clk
0:00:17.5]} 40. Rf7+ {[%clk 0:00:02.8]} 40... Kg6 {[%clk 0:00:17.9]} 41. Bxa2
{[%clk 0:00:03.2]} 41... Bxf3+ {[%clk 0:00:18.5]} 42. Kf2 {[%clk 0:00:03.3]}
42... Bxe4 {[%clk 0:00:19.4]} 43. Ke3 {[%clk 0:00:03.6]} 43... Bd5 {[%clk
0:00:19]} 44. Bxd5 {[%clk 0:00:03.4]} 44... Rxd5 {[%clk 0:00:19.9]} 45. Rb7
{[%clk 0:00:03.5]} 45... Ra5 {[%clk 0:00:19.1]} 46. Rb6+ {[%clk 0:00:03.2]}
46... Kg7 {[%clk 0:00:17.7]} 47. Rb7+ {[%clk 0:00:03.7]} 47... Kg6 {[%clk
0:00:17.9]} 48. Rb6+ {[%clk 0:00:04.2]} 48... Kg7 {[%clk 0:00:18.5]} 49. Rb7+
{[%clk 0:00:04.1]} 49... Kg6 {[%clk 0:00:19]} 1/2-1/2

[Event "Early-Titled-Tuesday-Blitz-June-18-2024"]
[Site "Chess.com"]
[Date "2024.06.18"]
[Round "4"]
[White "lagedema"]
[Black "NikolaGry"]
[Result "0-1"]
[WhiteElo "2429"]
[BlackElo "2696"]
[TimeControl "180+1"]
[EndTime "8:41:44 PDT"]
[Termination "NikolaGry won by resignation"]

1. d4 {[%clk 0:03:00.9]} 1... g6 {[%clk 0:02:56]} 2. Bf4 {[%clk 0:02:58]} 2...
Bg7 {[%clk 0:02:55.9]} 3. Nf3 {[%clk 0:02:58]} 3... c5 {[%clk 0:02:56]} 4. e3
{[%clk 0:02:58.1]} 4... Qb6 {[%clk 0:02:55.5]} 5. Nc3 {[%clk 0:02:53.4]} 5...
cxd4 {[%clk 0:02:52.7]} 6. exd4 {[%clk 0:02:54.3]} 6... Nf6 {[%clk 0:02:51.5]}
7. Qd2 {[%clk 0:02:41.7]} 7... O-O {[%clk 0:02:49]} 8. Bd3 {[%clk 0:02:31]} 8...
Nc6 {[%clk 0:02:40.1]} 9. d5 {[%clk 0:01:58.5]} 9... Nb4 {[%clk 0:02:34.6]} 10.
Bc4 {[%clk 0:01:58.9]} 10... d6 {[%clk 0:02:08.9]} 11. a3 {[%clk 0:01:56.4]}
11... Na6 {[%clk 0:02:08.2]} 12. Be3 {[%clk 0:01:53.3]} 12... Qc7 {[%clk
0:02:04.6]} 13. Bxa6 {[%clk 0:01:50.4]} 13... bxa6 {[%clk 0:02:04.1]} 14. O-O
{[%clk 0:01:51.1]} 14... Bb7 {[%clk 0:02:01.5]} 15. Rfe1 {[%clk 0:01:48]} 15...
Rfe8 {[%clk 0:01:54.3]} 16. Rad1 {[%clk 0:01:34.7]} 16... Bc8 {[%clk 0:01:47.6]}
17. h3 {[%clk 0:01:29.7]} 17... Rb8 {[%clk 0:01:44.8]} 18. b3 {[%clk 0:01:18.7]}
18... Bd7 {[%clk 0:01:44.1]} 19. Bf4 {[%clk 0:01:15.7]} 19... Rbc8 {[%clk
0:01:37.3]} 20. Re3 {[%clk 0:01:11.4]} 20... Nh5 {[%clk 0:01:36.1]} 21. Ne2
{[%clk 0:01:04.8]} 21... Qxc2 {[%clk 0:01:34.6]} 22. Qxc2 {[%clk 0:01:02.5]}
22... Rxc2 {[%clk 0:01:33]} 23. Ned4 {[%clk 0:01:01.5]} 23... Rc5 {[%clk
0:01:23.6]} 24. Bg5 {[%clk 0:00:43.6]} 24... f6 {[%clk 0:01:09.5]} 25. Bh4
{[%clk 0:00:38.7]} 25... Rxd5 {[%clk 0:01:07]} 26. Rde1 {[%clk 0:00:32.1]} 26...
e5 {[%clk 0:01:02.9]} 27. g4 {[%clk 0:00:27.6]} 27... Nf4 {[%clk 0:01:00]} 28.
Kh2 {[%clk 0:00:27.2]} 28... Rc8 {[%clk 0:00:54.3]} 29. Ne2 {[%clk 0:00:24.8]}
29... g5 {[%clk 0:00:46.3]} 30. Bg3 {[%clk 0:00:24.1]} 30... h5 {[%clk
0:00:41.5]} 31. gxh5 {[%clk 0:00:20.7]} 31... Nxh5 {[%clk 0:00:35.5]} 32. Nc3
{[%clk 0:00:20]} 32... Rdc5 {[%clk 0:00:25.1]} 33. Ne4 {[%clk 0:00:20]} 33...
Rd5 {[%clk 0:00:22.5]} 34. Nc3 {[%clk 0:00:16.1]} 34... Ra5 {[%clk 0:00:21.7]}
35. Ne4 {[%clk 0:00:15.3]} 35... d5 {[%clk 0:00:18.4]} 36. Nd6 {[%clk
0:00:12.9]} 36... Rc6 {[%clk 0:00:16.5]} 37. b4 {[%clk 0:00:07.7]} 37... Ra4
{[%clk 0:00:13.4]} 38. Nb7 {[%clk 0:00:07.8]} 38... Nxg3 {[%clk 0:00:12.2]} 39.
fxg3 {[%clk 0:00:06.8]} 39... d4 {[%clk 0:00:12.1]} 40. Rd3 {[%clk 0:00:05.7]}
40... Bf5 {[%clk 0:00:11.5]} 41. Rd2 {[%clk 0:00:05.3]} 41... Rxa3 {[%clk
0:00:11.2]} 42. Nc5 {[%clk 0:00:04.4]} 42... Rxf3 {[%clk 0:00:09.9]} 43. Kg2
{[%clk 0:00:04.4]} 43... Rc3 {[%clk 0:00:09.2]} 44. g4 {[%clk 0:00:04.8]} 44...
Bg6 {[%clk 0:00:08.6]} 45. Nd7 {[%clk 0:00:02.5]} 45... Rc2 {[%clk 0:00:07.7]}
46. Rxc2 {[%clk 0:00:03]} 46... Rxc2+ {[%clk 0:00:07.7]} 47. Kf3 {[%clk
0:00:03.9]} 47... d3 {[%clk 0:00:07.8]} 0-1

[Event "Early-Titled-Tuesday-Blitz-June-18-2024"]
[Site "Chess.com"]
[Date "2024.06.18"]
[Round "4"]
[White "Prizant_academy"]
[Black "GMG"]
[Result "1-0"]
[WhiteElo "2983"]
[BlackElo "2725"]
[TimeControl "180+1"]
[EndTime "8:41:46 PDT"]
[Termination "Prizant_academy won on time"]

1. d4 {[%clk 0:03:00.9]} 1... d5 {[%clk 0:02:57.6]} 2. c4 {[%clk 0:03:01]} 2...
e6 {[%clk 0:02:58.1]} 3. Nf3 {[%clk 0:03:01.2]} 3... Nf6 {[%clk 0:02:58]} 4. e3
{[%clk 0:03:01.8]} 4... b6 {[%clk 0:02:54.2]} 5. b3 {[%clk 0:02:43.7]} 5... Bb7
{[%clk 0:02:53.3]} 6. Bd3 {[%clk 0:02:44]} 6... Bb4+ {[%clk 0:02:48.3]} 7. Nbd2
{[%clk 0:02:40.9]} 7... dxc4 {[%clk 0:02:37.8]} 8. bxc4 {[%clk 0:02:32]} 8... c5
{[%clk 0:02:35.8]} 9. O-O {[%clk 0:02:11.7]} 9... cxd4 {[%clk 0:02:15.4]} 10.
exd4 {[%clk 0:02:10.2]} 10... O-O {[%clk 0:02:08.6]} 11. Bb2 {[%clk 0:02:05.5]}
11... Nc6 {[%clk 0:02:02.8]} 12. Rc1 {[%clk 0:01:49.2]} 12... Rc8 {[%clk
0:02:02.6]} 13. Qe2 {[%clk 0:01:47]} 13... Na5 {[%clk 0:01:35.8]} 14. Rfd1
{[%clk 0:01:37.7]} 14... Ba6 {[%clk 0:01:35.7]} 15. Ne5 {[%clk 0:01:16.1]} 15...
Bxd2 {[%clk 0:01:23.9]} 16. Rxd2 {[%clk 0:01:17]} 16... Nd7 {[%clk 0:01:21.9]}
17. Ba3 {[%clk 0:01:07]} 17... Nxe5 {[%clk 0:00:46.7]} 18. dxe5 {[%clk
0:01:07.9]} 18... Re8 {[%clk 0:00:45.4]} 19. Bxh7+ {[%clk 0:00:56.2]} 19... Kxh7
{[%clk 0:00:46.3]} 20. Rxd8 {[%clk 0:00:56.9]} 20... Rexd8 {[%clk 0:00:47]} 21.
h3 {[%clk 0:00:48.8]} 21... Nxc4 {[%clk 0:00:39.8]} 22. Be7 {[%clk 0:00:44.8]}
22... Rd7 {[%clk 0:00:30.5]} 23. Bb4 {[%clk 0:00:37.1]} 23... Rd5 {[%clk
0:00:24.9]} 24. Bc3 {[%clk 0:00:07.8]} 24... Nxe5 {[%clk 0:00:17.2]} 25. Qxa6
{[%clk 0:00:07.9]} 25... Rdc5 {[%clk 0:00:15]} 26. Qa3 {[%clk 0:00:04]} 26...
Nd3 {[%clk 0:00:12.8]} 27. Rc2 {[%clk 0:00:04.5]} 27... Nf4 {[%clk 0:00:08.5]}
28. Kf1 {[%clk 0:00:03.3]} 28... Nd5 {[%clk 0:00:08.7]} 29. Qxa7 {[%clk
0:00:02.2]} 29... b5 {[%clk 0:00:07.4]} 30. Qxf7 {[%clk 0:00:01.9]} 30... Nxc3
{[%clk 0:00:07.1]} 31. Qxe6 {[%clk 0:00:02.2]} 31... b4 {[%clk 0:00:07.5]} 32.
Qg4 {[%clk 0:00:02]} 32... Rd5 {[%clk 0:00:07]} 33. Qh4+ {[%clk 0:00:01.3]}
33... Kg6 {[%clk 0:00:06.9]} 34. Kg1 {[%clk 0:00:02.1]} 34... Rd1+ {[%clk
0:00:05]} 35. Kh2 {[%clk 0:00:02.5]} 35... Rb8 {[%clk 0:00:05.2]} 36. Qg4+
{[%clk 0:00:02.9]} 36... Kh7 {[%clk 0:00:05.3]} 37. Qh5+ {[%clk 0:00:03]} 37...
Kg8 {[%clk 0:00:05.4]} 38. Rxc3 {[%clk 0:00:03.9]} 38... bxc3 {[%clk 0:00:05.4]}
39. Qxd1 {[%clk 0:00:04.1]} 39... Rc8 {[%clk 0:00:05]} 40. Qb3+ {[%clk
0:00:04.2]} 40... Kh8 {[%clk 0:00:05]} 41. Qc2 {[%clk 0:00:05.1]} 41... Kg8
{[%clk 0:00:05.5]} 42. a4 {[%clk 0:00:05.8]} 42... Kf7 {[%clk 0:00:06.1]} 43. a5
{[%clk 0:00:06.4]} 43... Ke6 {[%clk 0:00:06.7]} 44. a6 {[%clk 0:00:06.5]} 44...
Kd5 {[%clk 0:00:07.3]} 45. a7 {[%clk 0:00:07.2]} 45... Kd4 {[%clk 0:00:07.5]}
46. Qa4+ {[%clk 0:00:07.6]} 46... Ke5 {[%clk 0:00:06.4]} 47. a8=Q {[%clk
0:00:08.5]} 1-0

[Event "Early-Titled-Tuesday-Blitz-June-18-2024"]
[Site "Chess.com"]
[Date "2024.06.18"]
[Round "4"]
[White "pavelalexandru07"]
[Black "Andrey-Ivanov2011"]
[Result "1-0"]
[WhiteElo "2460"]
[BlackElo "2056"]
[TimeControl "180+1"]
[EndTime "8:41:46 PDT"]
[Termination "pavelalexandru07 won on time"]

1. e4 {[%clk 0:03:00.9]} 1... c5 {[%clk 0:02:59.4]} 2. Nf3 {[%clk 0:03:00.9]}
2... d6 {[%clk 0:02:55.7]} 3. d4 {[%clk 0:03:01]} 3... cxd4 {[%clk 0:02:56.6]}
4. Nxd4 {[%clk 0:03:01]} 4... Nf6 {[%clk 0:02:57.3]} 5. Nc3 {[%clk 0:03:01.5]}
5... a6 {[%clk 0:02:51.7]} 6. Bg5 {[%clk 0:03:00.6]} 6... e6 {[%clk 0:02:51.7]}
7. f4 {[%clk 0:03:00.2]} 7... Be7 {[%clk 0:02:51.4]} 8. Qf3 {[%clk 0:03:00.1]}
8... Qc7 {[%clk 0:02:50.3]} 9. O-O-O {[%clk 0:03:00]} 9... Nbd7 {[%clk
0:02:44.7]} 10. g4 {[%clk 0:02:59.2]} 10... h6 {[%clk 0:02:44.4]} 11. Bxf6
{[%clk 0:02:56.9]} 11... Bxf6 {[%clk 0:02:43.7]} 12. h4 {[%clk 0:02:49.6]} 12...
Nc5 {[%clk 0:02:26.6]} 13. g5 {[%clk 0:02:46.6]} 13... Bxd4 {[%clk 0:02:26.9]}
14. Rxd4 {[%clk 0:02:45.1]} 14... Bd7 {[%clk 0:02:23.3]} 15. Be2 {[%clk
0:02:33.2]} 15... O-O-O {[%clk 0:02:17.2]} 16. Rhd1 {[%clk 0:02:18.2]} 16... Bc6
{[%clk 0:02:11.8]} 17. Kb1 {[%clk 0:02:16.1]} 17... Rhe8 {[%clk 0:01:27.7]} 18.
Qg3 {[%clk 0:02:04.7]} 18... hxg5 {[%clk 0:01:14.7]} 19. hxg5 {[%clk 0:02:03.6]}
19... e5 {[%clk 0:01:12.4]} 20. Rc4 {[%clk 0:01:51.7]} 20... Bb5 {[%clk
0:01:01.9]} 21. Nxb5 {[%clk 0:01:01.8]} 21... axb5 {[%clk 0:01:02.8]} 22. Rb4
{[%clk 0:01:00.2]} 22... exf4 {[%clk 0:00:52.5]} 23. Qxf4 {[%clk 0:00:56]} 23...
d5 {[%clk 0:00:44.9]} 24. Qg4+ {[%clk 0:00:46]} 24... Kb8 {[%clk 0:00:42.3]} 25.
exd5 {[%clk 0:00:41.8]} 25... Qe5 {[%clk 0:00:35.1]} 26. Bf3 {[%clk 0:00:26.1]}
26... f5 {[%clk 0:00:13.8]} 27. gxf6 {[%clk 0:00:25.5]} 27... gxf6 {[%clk
0:00:14.7]} 28. Rxb5 {[%clk 0:00:22.1]} 28... f5 {[%clk 0:00:14]} 29. Qb4 {[%clk
0:00:20.1]} 29... Na6 {[%clk 0:00:05.6]} 30. Rxb7+ {[%clk 0:00:19.3]} 30... Kc8
{[%clk 0:00:05.1]} 31. Qb6 {[%clk 0:00:17.2]} 31... Rd7 {[%clk 0:00:02.6]} 32.
Rxd7 {[%clk 0:00:16.8]} 32... Kxd7 {[%clk 0:00:03.5]} 33. Qxa6 {[%clk
0:00:16.8]} 33... Rb8 {[%clk 0:00:04.2]} 34. Qc6+ {[%clk 0:00:16.6]} 34... Ke7
{[%clk 0:00:03.3]} 35. d6+ {[%clk 0:00:16.6]} 35... Kf7 {[%clk 0:00:03.4]} 36.
Qd5+ {[%clk 0:00:16.2]} 36... Qxd5 {[%clk 0:00:02.7]} 37. Bxd5+ {[%clk
0:00:16.7]} 37... Kf6 {[%clk 0:00:02.7]} 38. d7 {[%clk 0:00:17]} 38... Rd8
{[%clk 0:00:02.9]} 39. Bc6 {[%clk 0:00:17.2]} 39... f4 {[%clk 0:00:03]} 40. Rf1
{[%clk 0:00:16.8]} 40... Kg5 {[%clk 0:00:03]} 41. a4 {[%clk 0:00:17.3]} 41...
Kf5 {[%clk 0:00:03.6]} 42. a5 {[%clk 0:00:17.3]} 42... Ke5 {[%clk 0:00:04]} 43.
a6 {[%clk 0:00:17.5]} 43... Kd6 {[%clk 0:00:04.7]} 44. Bb5 {[%clk 0:00:17.3]}
44... Kc7 {[%clk 0:00:04.3]} 45. Rxf4 {[%clk 0:00:16.3]} 45... Kb6 {[%clk
0:00:04.7]} 46. c4 {[%clk 0:00:16.5]} 46... Ka7 {[%clk 0:00:03.8]} 47. b4 {[%clk
0:00:16.6]} 47... Kb6 {[%clk 0:00:03.9]} 48. Rf6+ {[%clk 0:00:16.6]} 48... Ka7
{[%clk 0:00:04.1]} 49. Re6 {[%clk 0:00:17]} 49... Rb8 {[%clk 0:00:01.5]} 50. Re8
{[%clk 0:00:16]} 1-0

[Event "Early-Titled-Tuesday-Blitz-June-18-2024"]
[Site "Chess.com"]
[Date "2024.06.18"]
[Round "4"]
[White "Masterisback04"]
[Black "WilliamAlfaroCaracas"]
[Result "0-1"]
[WhiteElo "2113"]
[BlackElo "2343"]
[TimeControl "180+1"]
[EndTime "8:41:48 PDT"]
[Termination "WilliamAlfaroCaracas won by checkmate"]

1. e4 {[%clk 0:03:00.9]} 1... c5 {[%clk 0:02:16.4]} 2. Nf3 {[%clk 0:02:55.5]}
2... d6 {[%clk 0:02:16.3]} 3. c3 {[%clk 0:02:55]} 3... Nf6 {[%clk 0:02:15.6]} 4.
Bd3 {[%clk 0:02:55]} 4... Nc6 {[%clk 0:02:13.6]} 5. O-O {[%clk 0:02:54.5]} 5...
e5 {[%clk 0:02:14]} 6. Bc2 {[%clk 0:02:53.9]} 6... Be7 {[%clk 0:02:14.3]} 7. h3
{[%clk 0:02:53]} 7... O-O {[%clk 0:02:13.6]} 8. d4 {[%clk 0:02:53.6]} 8... cxd4
{[%clk 0:02:13.8]} 9. cxd4 {[%clk 0:02:53.7]} 9... exd4 {[%clk 0:02:14.7]} 10.
Nxd4 {[%clk 0:02:53.9]} 10... d5 {[%clk 0:02:15.2]} 11. Nc3 {[%clk 0:02:44.8]}
11... Nxd4 {[%clk 0:01:05.1]} 12. Qxd4 {[%clk 0:02:31.4]} 12... dxe4 {[%clk
0:01:06]} 13. Qxd8 {[%clk 0:02:19.8]} 13... Rxd8 {[%clk 0:01:06.9]} 14. Nxe4
{[%clk 0:02:20.2]} 14... Be6 {[%clk 0:01:07]} 15. Bg5 {[%clk 0:02:11.6]} 15...
Rac8 {[%clk 0:01:04.3]} 16. Rac1 {[%clk 0:01:43.4]} 16... Bxa2 {[%clk
0:00:58.5]} 17. Nxf6+ {[%clk 0:01:40.9]} 17... Bxf6 {[%clk 0:00:37.1]} 18. Bxf6
{[%clk 0:01:39.7]} 18... gxf6 {[%clk 0:00:38]} 19. Be4 {[%clk 0:01:14.8]} 19...
Rxc1 {[%clk 0:00:33.8]} 20. Rxc1 {[%clk 0:01:15.7]} 20... Rd2 {[%clk 0:00:30]}
21. Bxb7 {[%clk 0:00:56.1]} 21... Rxb2 {[%clk 0:00:26.9]} 22. Rc7 {[%clk
0:00:51.3]} 22... a5 {[%clk 0:00:23.7]} 23. Bf3 {[%clk 0:00:30.9]} 23... a4
{[%clk 0:00:20.9]} 24. Ra7 {[%clk 0:00:30.8]} 24... Bb3 {[%clk 0:00:17.4]} 25.
Be4 {[%clk 0:00:26.8]} 25... Ra2 {[%clk 0:00:15.1]} 26. Bc6 {[%clk 0:00:22.5]}
26... Ra1+ {[%clk 0:00:13]} 27. Kh2 {[%clk 0:00:22.5]} 27... a3 {[%clk
0:00:12.1]} 28. Kg3 {[%clk 0:00:22.8]} 28... a2 {[%clk 0:00:11.2]} 29. Ba4
{[%clk 0:00:07.9]} 29... Rb1 {[%clk 0:00:09.1]} 30. Bxb3 {[%clk 0:00:08.1]}
30... a1=Q {[%clk 0:00:08.9]} 31. Rxa1 {[%clk 0:00:08.2]} 31... Rxa1 {[%clk
0:00:09.6]} 32. Bd5 {[%clk 0:00:08.5]} 32... Kg7 {[%clk 0:00:09.4]} 33. Bf3
{[%clk 0:00:08.1]} 33... f5 {[%clk 0:00:09.4]} 34. Kf4 {[%clk 0:00:08]} 34...
Kf6 {[%clk 0:00:09.9]} 35. g3 {[%clk 0:00:07.6]} 35... Ra3 {[%clk 0:00:08.7]}
36. h4 {[%clk 0:00:04.5]} 36... Ra2 {[%clk 0:00:07.5]} 37. Ke3 {[%clk
0:00:04.2]} 37... Ke5 {[%clk 0:00:06.1]} 38. Be2 {[%clk 0:00:04]} 38... Ra3+
{[%clk 0:00:05.3]} 39. Kd2 {[%clk 0:00:04]} 39... f4 {[%clk 0:00:05.3]} 40. Ke1
{[%clk 0:00:02.7]} 40... fxg3 {[%clk 0:00:05]} 41. fxg3 {[%clk 0:00:03.6]} 41...
Rxg3 {[%clk 0:00:04.8]} 42. h5 {[%clk 0:00:03]} 42... Rh3 {[%clk 0:00:05]} 43.
Kf2 {[%clk 0:00:03.7]} 43... Kf4 {[%clk 0:00:05.2]} 44. Bf1 {[%clk 0:00:03.7]}
44... Rh2+ {[%clk 0:00:04.9]} 45. Kg1 {[%clk 0:00:02.5]} 45... Rxh5 {[%clk
0:00:05.8]} 46. Kf2 {[%clk 0:00:03.3]} 46... Rh2+ {[%clk 0:00:05.2]} 47. Kg1
{[%clk 0:00:03.4]} 47... Rb2 {[%clk 0:00:05.8]} 48. Bg2 {[%clk 0:00:03.5]} 48...
Kg3 {[%clk 0:00:05.8]} 49. Bf1 {[%clk 0:00:04.4]} 49... Rb1 {[%clk 0:00:04.8]}
50. Kh1 {[%clk 0:00:04.2]} 50... Rxf1# {[%clk 0:00:05.7]} 0-1